fUSD/lending_fUSD_20240712
["ID","MTS","AMOUNT","RATE_DAILY","PERIOD"]
[331787953,1720763466562,-957.46,0.00013889,2]
[331787954,1720763466572,-500.0,0.00013889,2]
[331787955,1720763466581,-500.0,0.00013889,2]
[331787956,1720763466595,-500.0,0.00013889,2]
[331787957,1720763466604,-500.0,0.00013889,2]
[331787958,1720763466614,-66.53512707,0.00013889,2]
[331787959,1720763467233,-903.84487293,0.00013889,2]
[331787960,1720763467244,-1086.76,0.00013889,2]
[331787961,1720763467254,-363.02718274,0.00013889,2]
[331787962,1720763467267,-351.99281726,0.00013889,2]
[331787963,1720763467278,-500.0,0.00013889,2]
[331787964,1720763467287,-746.26601861,0.00013889,2]
[331787965,1720763467300,-553.70398139,0.00013889,2]
[331787966,1720763467310,-135.69101863,0.00013889,2]
[331787967,1720763467343,-955.60898137,0.00013889,2]
[331787968,1720763467353,-159.07101863,0.00013889,2]
[331787969,1720763467365,-952.91898137,0.00013889,2]
[331787970,1720763467376,-500.0,0.00013889,2]
[331787971,1720763467386,-500.0,0.00013889,2]
[331787972,1720763467396,-500.0,0.00013889,2]
[331787973,1720763467406,-915.43,0.00013889,2]
[331787974,1720763467415,-500.0,0.00013889,2]
[331787975,1720763467424,-500.0,0.00013889,2]
[331787976,1720763467434,-468.56,0.00013889,2]
[331787977,1720763467443,-500.0,0.00013889,2]
[331787978,1720763467453,-500.0,0.00013889,2]
[331787979,1720763467463,-500.0,0.00013889,2]
[331787980,1720763467473,-500.0,0.00013889,2]
[331787981,1720763467482,-500.0,0.00013889,2]
[331787982,1720763467492,-385.41,0.00013889,2]
[331787983,1720763467501,-224.64,0.00013889,2]
[331787984,1720763467511,-732.88,0.00013889,2]
[331787985,1720763467521,-1232.95,0.00013889,2]
[331787986,1720763467531,-500.0,0.00013889,2]
[331787987,1720763467541,-500.0,0.00013889,2]
[331787988,1720763467551,-500.0,0.00013889,2]
[331787989,1720763467561,-627.66,0.00013889,2]
[331787990,1720763467572,-500.0,0.00013889,2]
[331787991,1720763467582,-500.0,0.00013889,2]
[331787992,1720763467594,-600.09,0.00013889,2]
[331787993,1720763467604,-887.72,0.00013889,2]
[331787994,1720763467614,-500.0,0.00013889,2]
[331787995,1720763467623,-500.0,0.00013889,2]
[331787996,1720763467633,-924.21,0.00013889,2]
[331787997,1720763467642,-500.0,0.00013889,2]
[331787998,1720763467652,-834.3,0.00013889,2]
[331787999,1720763467662,-500.0,0.00013889,2]
[331788000,1720763467671,-500.0,0.00013889,2]
[331788001,1720763467681,-1358.75,0.00013889,2]
[331788002,1720763467691,-500.0,0.00013889,2]
[331788003,1720763467701,-500.0,0.00013889,2]
[331788004,1720763467711,-500.0,0.00013889,2]
[331788005,1720763467720,-576.69,0.00013889,2]
[331788006,1720763467730,-500.0,0.00013889,2]
[331788007,1720763467739,-319.23,0.00013889,2]
[331788008,1720763467753,-500.0,0.00013889,2]
[331788009,1720763467763,-557.65,0.00013889,2]
[331788010,1720763467772,-500.0,0.00013889,2]
[331788011,1720763467783,-500.0,0.00013889,2]
[331788012,1720763467793,-500.0,0.00013889,2]
[331788013,1720763467804,-500.0,0.00013889,2]
[331788014,1720763467814,-1075.38,0.00013889,2]
[331788015,1720763467824,-214.47998084,0.00013889,2]
[331788016,1720763467834,-513.85,0.00013889,2]
[331788017,1720763467846,-677.43,0.00013889,2]
[331788018,1720763467855,-500.0,0.00013889,2]
[331788019,1720763467865,-922.36,0.00013889,2]
[331788020,1720763467874,-500.0,0.00013889,2]
[331788021,1720763467884,-500.0,0.00013889,2]
[331788022,1720763467894,-621.76277041,0.00013889,2]
[331788023,1720763467903,-500.0,0.00013889,2]
[331788024,1720763467913,-1067.35,0.00013889,2]
[331788025,1720763467922,-561.80157032,0.00013889,2]
[331788026,1720763467933,-500.0,0.00013889,2]
[331788027,1720763467942,-500.0,0.00013889,2]
[331788028,1720763467952,-151.97,0.00013889,2]
[331788029,1720763467961,-888.2,0.00013889,2]
[331788030,1720763467971,-1018.08,0.00013889,2]
[331788031,1720763467981,-500.0,0.00013889,2]
[331788032,1720763467992,-500.0,0.00013889,2]
[331788033,1720763468002,-618.38,0.00013889,2]
[331788034,1720763468011,-500.0,0.00013889,2]
[331788035,1720763468021,-500.0,0.00013889,2]
[331788036,1720763468030,-500.0,0.00013889,2]
[331788037,1720763468039,-500.0,0.00013889,2]
[331788038,1720763468049,-621.5,0.00013889,2]
[331788039,1720763468059,-527.45,0.00013889,2]
[331788040,1720763468069,-775.19,0.00013889,2]
[331788041,1720763468078,-587.6,0.00013889,2]
[331788042,1720763468089,-606.2,0.00013889,2]
[331788043,1720763468099,-334.03206581,0.00013889,2]
[331788044,1720763468109,-687.54,0.00013889,2]
[331788045,1720763468118,-500.0,0.00013889,2]
[331788046,1720763468128,-531.24,0.00013889,2]
[331788047,1720763468138,-500.0,0.00013889,2]
[331788048,1720763468148,-529.67,0.00013889,2]
[331788049,1720763468157,-588.19,0.00013889,2]
[331788050,1720763468167,-500.0,0.00013889,2]
[331788051,1720763468176,-157.42700901,0.00013889,2]
[331788052,1720763468186,-783.48,0.00013889,2]
[331788053,1720763468196,-500.0,0.00013889,2]
[331788054,1720763468205,-1127.76,0.00013889,2]
[331788055,1720763468214,-831.64,0.00013889,2]
[331788056,1720763468224,-500.0,0.00013889,2]
[331788057,1720763468233,-624.49,0.00013889,2]
[331788058,1720763468242,-891.7,0.00013889,2]
[331788059,1720763468253,-658.22,0.00013889,2]
[331788060,1720763468262,-500.0,0.00013889,2]
[331788061,1720763468272,-500.0,0.00013889,2]
[331788062,1720763468281,-938.15,0.00013889,2]
[331788063,1720763468291,-500.0,0.00013889,2]
[331788064,1720763468300,-559.3,0.00013889,2]
[331788065,1720763468310,-500.0,0.00013889,2]
[331788066,1720763468319,-1238.9,0.00013889,2]
[331788067,1720763468328,-500.0,0.00013889,2]
[331788068,1720763468340,-500.0,0.00013889,2]
[331788069,1720763468349,-509.45339016,0.00013889,2]
[331788070,1720763468359,-500.0,0.00013889,2]
[331788071,1720763468372,-1054.17,0.00013889,2]
[331788072,1720763468382,-500.0,0.00013889,2]
[331788073,1720763468392,-500.0,0.00013889,2]
[331788074,1720763468402,-1094.92,0.00013889,2]
[331788075,1720763468411,-500.0,0.00013889,2]
[331788076,1720763468421,-1331.75,0.00013889,2]
[331788077,1720763468431,-715.5,0.00013889,2]
[331788078,1720763468440,-748.3,0.00013889,2]
[331788079,1720763468450,-500.0,0.00013889,2]
[331788080,1720763468459,-500.0,0.00013889,2]
[331788081,1720763468469,-500.0,0.00013889,2]
[331788082,1720763468478,-500.0,0.00013889,2]
[331788083,1720763468488,-500.0,0.00013889,2]
[331788084,1720763468497,-1323.41,0.00013889,2]
[331788085,1720763468506,-564.09,0.00013889,2]
[331788086,1720763468516,-500.0,0.00013889,2]
[331788087,1720763468525,-895.57,0.00013889,2]
[331788088,1720763468535,-500.0,0.00013889,2]
[331788089,1720763468544,-788.69,0.00013889,2]
[331788090,1720763468554,-167.86,0.00013889,2]
[331788091,1720763468563,-583.5,0.00013889,2]
[331788092,1720763468572,-500.0,0.00013889,2]
[331788093,1720763468582,-863.73,0.00013889,2]
[331788094,1720763468593,-500.0,0.00013889,2]
[331788095,1720763468602,-500.0,0.00013889,2]
[331788096,1720763468612,-500.0,0.00013889,2]
[331788097,1720763468621,-605.99,0.00013889,2]
[331788098,1720763468630,-500.0,0.00013889,2]
[331788099,1720763468640,-500.0,0.00013889,2]
[331788100,1720763468650,-708.79,0.00013889,2]
[331788101,1720763468659,-500.0,0.00013889,2]
[331788102,1720763468669,-500.0,0.00013889,2]
[331788103,1720763468678,-666.78,0.00013889,2]
[331788104,1720763468687,-387.58,0.00013889,2]
[331788105,1720763468697,-500.0,0.00013889,2]
[331788106,1720763468707,-875.18,0.00013889,2]
[331788107,1720763468716,-500.0,0.00013889,2]
[331788108,1720763468726,-1053.04,0.00013889,2]
[331788109,1720763468736,-500.0,0.00013889,2]
[331788110,1720763468749,-500.0,0.00013889,2]
[331788111,1720763468758,-500.0,0.00013889,2]
[331788112,1720763468767,-1036.15,0.00013889,2]
[331788113,1720763468780,-500.0,0.00013889,2]
[331788114,1720763468790,-298.06664108,0.00013889,2]
[331788115,1720763468805,-501.26335892,0.00013889,2]
[331788116,1720763468815,-500.0,0.00013889,2]
[331788117,1720763468826,-500.0,0.00013889,2]
[331788118,1720763468836,-1079.16,0.00013889,2]
[331788119,1720763468847,-687.45,0.00013889,2]
[331788120,1720763468857,-500.0,0.00013889,2]
[331788121,1720763468866,-1584.19,0.00013889,2]
[331788122,1720763468875,-500.0,0.00013889,2]
[331788123,1720763468885,-500.0,0.00013889,2]
[331788124,1720763468894,-500.0,0.00013889,2]
[331788125,1720763468904,-500.0,0.00013889,2]
[331788126,1720763468914,-1366.75,0.00013889,2]
[331788127,1720763468923,-500.0,0.00013889,2]
[331788128,1720763468933,-500.0,0.00013889,2]
[331788129,1720763468943,-500.0,0.00013889,2]
[331788130,1720763468952,-678.82,0.00013889,2]
[331788131,1720763468962,-500.0,0.00013889,2]
[331788132,1720763468972,-1427.74,0.00013889,2]
[331788133,1720763468981,-500.0,0.00013889,2]
[331788134,1720763468990,-500.0,0.00013889,2]
[331788135,1720763469000,-500.0,0.00013889,2]
[331788136,1720763469009,-818.09,0.00013889,2]
[331788137,1720763469018,-769.59,0.00013889,2]
[331788138,1720763469028,-500.0,0.00013889,2]
[331788139,1720763469037,-500.0,0.00013889,2]
[331788140,1720763469047,-993.13,0.00013889,2]
[331788141,1720763469057,-500.0,0.00013889,2]
[331788142,1720763469066,-500.0,0.00013889,2]
[331788143,1720763469075,-500.0,0.00013889,2]
[331788144,1720763469085,-285.61624932,0.00013889,2]
[331788145,1720763469096,-901.68,0.00013889,2]
[331788146,1720763469105,-500.0,0.00013889,2]
[331788147,1720763469115,-500.0,0.00013889,2]
[331788148,1720763469125,-500.0,0.00013889,2]
[331788149,1720763469135,-500.0,0.00013889,2]
[331788150,1720763469145,-500.0,0.00013889,2]
[331788151,1720763469212,-500.0,0.00013889,2]
[331788152,1720763469221,-973.58,0.00013889,2]
[331788153,1720763469230,-500.0,0.00013889,2]
[331788154,1720763469240,-500.0,0.00013889,2]
[331788155,1720763469249,-500.0,0.00013889,2]
[331788156,1720763469258,-500.0,0.00013889,2]
[331788157,1720763469267,-500.0,0.00013889,2]
[331788158,1720763469276,-697.35,0.00013889,2]
[331788159,1720763469286,-1644.61,0.00013889,2]
[331788160,1720763469295,-1152.09,0.00013889,2]
[331788161,1720763469304,-500.0,0.00013889,2]
[331788162,1720763469313,-500.0,0.00013889,2]
[331788163,1720763469323,-500.0,0.00013889,2]
[331788164,1720763469332,-456.81928463,0.00013889,2]
[331788165,1720763469343,-500.0,0.00013889,2]
[331788166,1720763469352,-500.0,0.00013889,2]
[331788167,1720763469362,-500.0,0.00013889,2]
[331788168,1720763469371,-572.97,0.00013889,2]
[331788169,1720763469380,-1098.31,0.00013889,2]
[331788170,1720763469390,-500.0,0.00013889,2]
[331788171,1720763469399,-500.0,0.00013889,2]
[331788172,1720763469409,-500.0,0.00013889,2]
[331788173,1720763469419,-500.0,0.00013889,2]
[331788174,1720763469429,-500.0,0.00013889,2]
[331788175,1720763469438,-500.0,0.00013889,2]
[331788176,1720763469448,-500.0,0.00013889,2]
[331788177,1720763469457,-459.75,0.00013889,2]
[331788178,1720763469466,-500.0,0.00013889,2]
[331788179,1720763469476,-500.0,0.00013889,2]
[331788180,1720763469485,-353.11,0.00013889,2]
[331788181,1720763469494,-500.0,0.0001389,2]
[331788182,1720763469504,-555.91577785,0.0001389,2]
[331788183,1720763469513,-500.0,0.0001389,2]
[331788184,1720763469522,-500.0,0.0001389,2]
[331788185,1720763469532,-500.0,0.0001389,2]
[331788186,1720763469541,-500.0,0.0001389,2]
[331788187,1720763469551,-500.0,0.0001389,2]
[331788188,1720763469560,-45.27170822,0.0001389,2]
[331788189,1720763469946,-458.15448876,0.00013698,2]
[331788190,1720763487202,500.0,9.102e-05,2]
[331788191,1720763522896,155.45288344,0.00011033,2]
[331788193,1720763532025,155.11139527,0.00011033,2]
[331788195,1720763662482,614.49,0.00010959,2]
[331788205,1720763916447,366.91,0.00010804,2]
[331788207,1720764099021,189.41769582,0.00011199,2]
[331788210,1720764547607,366.68,0.00010373,2]
[331788211,1720764583725,155.0,0.00011199,2]
[331788222,1720764633214,-232.547553,0.00012178,2]
[331788223,1720764633224,-181.56,0.0001224,2]
[331788224,1720764633233,-160.14295038,0.00012343,2]
[331788225,1720764633331,-567.76704962,0.00012343,2]
[331788226,1720764633341,-161.87,0.00012372,2]
[331788227,1720764633350,-167.46,0.00012402,2]
[331788228,1720764633360,-160.27755314,0.00012434,2]
[331788229,1720764633369,-1170.77,0.00012459,2]
[331788230,1720764633379,-250.0,0.00012534,2]
[331788231,1720764633388,-250.0,0.00012538,2]
[331788232,1720764633397,-10145.23,0.00012538,2]
[331788233,1720764633408,-150.0,0.00012626,2]
[331788234,1720764633417,-366.68,0.00012637,2]
[331788235,1720764633427,-566.64,0.00012639,2]
[331788236,1720764633436,-218.04,0.00012693,2]
[331788237,1720764633446,-445.73,0.00012693,2]
[331788238,1720764633455,-3448.26,0.00012693,2]
[331788239,1720764633467,-424.8441,0.00012736,2]
[331788240,1720764633476,-165.08,0.00012836,2]
[331788241,1720764633485,-150.99,0.00012873,2]
[331788242,1720764633495,-499.99,0.00012873,2]
[331788243,1720764633504,-1000.0,0.0001288,2]
[331788244,1720764633512,-171.78,0.00013109,2]
[331788245,1720764633521,-8166.59129723,0.00013158,2]
[331788246,1720764634218,-30377.40870277,0.00013158,2]
[331788247,1720764634227,-899.14507577,0.00013472,2]
[331788248,1720764634236,-1696.7119273,0.000135,2]
[331788255,1720764637889,-242.5499319,0.00012302,2]
[331788256,1720764637899,-303.2880727,0.000135,2]
[331788257,1720764637909,-196.78351634,0.00013569,2]
[331788258,1720764637920,-155.0,0.00013574,2]
[331788259,1720764637931,-220.62,0.00013589,3]
[331788260,1720764637942,-123.4937714,0.000136,2]
[331788261,1720764638054,-301.3562286,0.000136,2]
[331788262,1720764638066,-150.0,0.000136,2]
[331788263,1720764638076,-355.25,0.000136,2]
[331788264,1720764638086,-165.05,0.000136,2]
[331788265,1720764638100,-1125.94985769,0.0001361,2]
[331788266,1720764638112,-1880.79496725,0.0001361,2]
[331788267,1720764638123,-150.0,0.00013679,2]
[331788268,1720764638134,-500.0,0.00013698,2]
[331788269,1720764638144,-500.0,0.00013698,2]
[331788270,1720764638154,-500.0,0.00013698,2]
[331788271,1720764638166,-500.0,0.00013698,2]
[331788272,1720764638176,-500.0,0.00013698,2]
[331788273,1720764638187,-500.0,0.00013698,2]
[331788274,1720764638197,-500.0,0.00013698,2]
[331788275,1720764638208,-500.0,0.00013698,2]
[331788276,1720764638219,-500.0,0.00013698,2]
[331788277,1720764638231,-500.0,0.00013698,2]
[331788278,1720764638241,-500.0,0.00013698,2]
[331788279,1720764638251,-556.91812711,0.00013698,2]
[331788280,1720764638262,-500.0,0.00013698,2]
[331788281,1720764638272,-500.0,0.00013698,2]
[331788282,1720764638282,-200.0,0.00013698,2]
[331788283,1720764638292,-500.0,0.00013698,2]
[331788284,1720764638303,-500.0,0.00013698,2]
[331788285,1720764638313,-500.0,0.00013698,2]
[331788286,1720764638323,-500.0,0.00013698,2]
[331788287,1720764638332,-500.0,0.00013698,2]
[331788288,1720764638343,-500.0,0.00013698,2]
[331788289,1720764638354,-395.5170903,0.00013698,2]
[331788290,1720764638364,-229.59187425,0.00013698,2]
[331788291,1720764638380,-270.40812575,0.00013698,2]
[331788292,1720764638390,-500.0,0.00013698,2]
[331788293,1720764638399,-500.0,0.00013698,2]
[331788294,1720764638410,-500.0,0.00013698,2]
[331788295,1720764638420,-500.0,0.00013698,2]
[331788296,1720764638429,-500.0,0.00013698,2]
[331788297,1720764638441,-500.0,0.00013698,2]
[331788299,1720764638451,-500.0,0.00013698,2]
[331788301,1720764638462,-500.0,0.00013698,2]
[331788303,1720764638473,-500.0,0.00013698,2]
[331788305,1720764638483,-500.0,0.00013698,2]
[331788307,1720764638495,-500.0,0.00013698,2]
[331788309,1720764638507,-500.0,0.00013698,2]
[331788311,1720764638516,-828.18,0.00013698,2]
[331788313,1720764638529,-500.0,0.00013698,2]
[331788314,1720764638538,-500.0,0.00013698,2]
[331788316,1720764638550,-500.0,0.00013698,2]
[331788318,1720764638560,-500.0,0.00013698,2]
[331788320,1720764638570,-153.27595493,0.00013698,2]
[331788322,1720764638580,-500.0,0.00013698,2]
[331788324,1720764638589,-500.0,0.00013698,2]
[331788326,1720764638600,-500.0,0.00013698,2]
[331788327,1720764638610,-500.0,0.00013698,2]
[331788329,1720764638619,-500.0,0.00013698,2]
[331788331,1720764638629,-500.0,0.00013698,2]
[331788333,1720764638638,-500.0,0.00013698,2]
[331788335,1720764638648,-500.0,0.00013698,2]
[331788336,1720764638658,-500.0,0.00013698,2]
[331788338,1720764638668,-500.0,0.00013698,2]
[331788340,1720764638677,-500.0,0.00013698,2]
[331788342,1720764638687,-500.0,0.00013698,2]
[331788344,1720764638697,-500.0,0.00013698,2]
[331788345,1720764638706,-500.0,0.00013698,2]
[331788347,1720764638716,-500.0,0.00013698,2]
[331788349,1720764638725,-403.35184288,0.00013698,2]
[331788351,1720764638734,-500.0,0.00013698,2]
[331788353,1720764638744,-500.0,0.00013698,2]
[331788354,1720764638753,-500.0,0.00013698,2]
[331788356,1720764638762,-500.0,0.00013698,2]
[331788358,1720764638771,-332.9083745,0.00013698,2]
[331788360,1720764638780,-500.0,0.00013698,2]
[331788362,1720764638794,-500.0,0.00013698,2]
[331788363,1720764638807,-500.0,0.00013698,2]
[331788364,1720764638819,-500.0,0.00013698,2]
[331788365,1720764638830,-500.0,0.00013698,2]
[331788366,1720764638842,-500.0,0.00013698,2]
[331788367,1720764638852,-500.0,0.00013698,2]
[331788368,1720764638863,-500.0,0.00013698,2]
[331788369,1720764638875,-500.0,0.00013698,2]
[331788370,1720764638887,-968.26,0.00013698,2]
[331788371,1720764638897,-500.0,0.00013698,2]
[331788372,1720764638909,-500.0,0.00013698,2]
[331788373,1720764638921,-500.0,0.00013698,2]
[331788374,1720764638933,-500.0,0.00013698,2]
[331788375,1720764638946,-500.0,0.00013698,2]
[331788376,1720764638961,-500.0,0.00013698,2]
[331788377,1720764638974,-500.0,0.00013698,2]
[331788378,1720764638987,-500.0,0.00013698,2]
[331788379,1720764638998,-500.0,0.00013698,2]
[331788380,1720764639010,-500.0,0.00013698,2]
[331788381,1720764639021,-500.0,0.00013698,2]
[331788382,1720764639032,-500.0,0.00013698,2]
[331788383,1720764639045,-500.0,0.00013698,2]
[331788384,1720764639059,-500.0,0.00013698,2]
[331788385,1720764639073,-546.95,0.00013698,2]
[331788386,1720764639086,-500.0,0.00013698,2]
[331788387,1720764639098,-451.32,0.00013698,2]
[331788388,1720764639108,-993.83,0.00013698,2]
[331788389,1720764639119,-500.0,0.00013698,2]
[331788390,1720764639133,-500.0,0.00013698,2]
[331788391,1720764639144,-500.0,0.00013698,2]
[331788392,1720764639156,-500.0,0.00013698,2]
[331788393,1720764639169,-500.0,0.00013698,2]
[331788394,1720764639182,-500.0,0.00013698,2]
[331788395,1720764639194,-500.0,0.00013698,2]
[331788396,1720764639206,-500.0,0.00013698,2]
[331788397,1720764639219,-500.0,0.00013698,2]
[331788398,1720764639233,-500.0,0.00013698,2]
[331788399,1720764639248,-500.0,0.00013698,2]
[331788400,1720764639261,-808.69,0.00013698,2]
[331788401,1720764639273,-500.0,0.00013698,2]
[331788402,1720764639285,-500.0,0.00013698,2]
[331788403,1720764639295,-730.02,0.00013698,2]
[331788404,1720764639305,-500.0,0.00013698,2]
[331788405,1720764639315,-500.0,0.00013698,2]
[331788406,1720764639326,-500.0,0.00013698,2]
[331788407,1720764639337,-500.0,0.00013698,2]
[331788408,1720764639349,-500.0,0.00013698,2]
[331788409,1720764639360,-500.0,0.00013698,2]
[331788410,1720764639372,-500.0,0.00013698,2]
[331788411,1720764639384,-500.0,0.00013698,2]
[331788412,1720764639394,-500.0,0.00013698,2]
[331788413,1720764639406,-500.0,0.00013698,2]
[331788414,1720764639417,-500.0,0.00013698,2]
[331788415,1720764639427,-500.0,0.00013698,2]
[331788416,1720764639439,-500.0,0.00013698,2]
[331788417,1720764639452,-500.0,0.00013698,2]
[331788418,1720764639463,-500.0,0.00013698,2]
[331788419,1720764639473,-500.0,0.00013698,2]
[331788420,1720764639483,-500.0,0.00013698,2]
[331788421,1720764639493,-500.0,0.00013698,2]
[331788422,1720764639503,-258.51,0.00013698,2]
[331788423,1720764639514,-246.19,0.00013698,2]
[331788424,1720764639524,-222.59454499,0.00013698,2]
[331788425,1720764639535,-500.0,0.00013698,2]
[331788426,1720764639550,-592.75,0.00013698,2]
[331788427,1720764639561,-442.8,0.00013698,2]
[331788428,1720764639571,-890.82,0.00013698,2]
[331788429,1720764639582,-500.0,0.00013698,2]
[331788430,1720764639593,-500.0,0.00013698,2]
[331788431,1720764639604,-500.0,0.00013698,2]
[331788432,1720764639616,-500.0,0.00013698,2]
[331788433,1720764639627,-500.0,0.00013698,2]
[331788434,1720764639640,-514.15,0.00013698,2]
[331788436,1720764639651,-530.42,0.00013698,2]
[331788437,1720764639663,-500.0,0.00013698,2]
[331788438,1720764639674,-500.0,0.00013698,2]
[331788439,1720764639685,-500.0,0.00013698,2]
[331788440,1720764639696,-500.0,0.00013698,2]
[331788441,1720764639707,-1194.83,0.00013698,2]
[331788442,1720764639717,-500.0,0.00013698,2]
[331788443,1720764639728,-500.0,0.00013698,2]
[331788444,1720764639739,-500.0,0.00013698,2]
[331788445,1720764639750,-543.81,0.00013698,2]
[331788446,1720764639761,-500.0,0.00013698,2]
[331788447,1720764639771,-500.0,0.00013698,2]
[331788448,1720764639782,-817.35,0.00013698,2]
[331788449,1720764639793,-500.0,0.00013698,2]
[331788450,1720764639804,-500.0,0.00013698,2]
[331788451,1720764639815,-602.05593029,0.00013698,2]
[331788452,1720764639825,-500.0,0.00013698,2]
[331788453,1720764639836,-500.0,0.00013698,2]
[331788454,1720764639847,-500.0,0.00013698,2]
[331788455,1720764639858,-500.0,0.00013698,2]
[331788456,1720764639868,-1130.32,0.00013698,2]
[331788457,1720764639879,-500.0,0.00013698,2]
[331788458,1720764639890,-500.0,0.00013698,2]
[331788459,1720764639900,-500.0,0.00013698,2]
[331788460,1720764639911,-500.0,0.00013698,2]
[331788461,1720764639921,-500.0,0.00013698,2]
[331788462,1720764639932,-500.0,0.00013698,2]
[331788463,1720764639943,-500.0,0.00013698,2]
[331788464,1720764639954,-500.0,0.00013698,2]
[331788465,1720764639965,-503.86,0.00013698,2]
[331788466,1720764639975,-505.2,0.00013698,2]
[331788467,1720764639986,-500.0,0.00013698,2]
[331788468,1720764639996,-1927.0,0.00013698,2]
[331788469,1720764640007,-500.0,0.00013698,2]
[331788470,1720764640017,-500.0,0.00013698,2]
[331788471,1720764640028,-500.0,0.00013698,2]
[331788472,1720764640039,-1055.82,0.00013698,2]
[331788473,1720764640049,-500.0,0.00013698,2]
[331788474,1720764640059,-510.83,0.00013698,2]
[331788475,1720764640071,-500.0,0.00013698,2]
[331788476,1720764640081,-500.0,0.00013698,2]
[331788477,1720764640095,-500.0,0.00013698,2]
[331788478,1720764640105,-500.0,0.00013698,2]
[331788479,1720764640115,-561.81,0.00013698,2]
[331788480,1720764640126,-500.0,0.00013698,2]
[331788481,1720764640137,-253.01870179,0.00013698,2]
[331788482,1720764640148,-672.05,0.00013698,2]
[331788483,1720764640158,-600.86,0.00013698,2]
[331788484,1720764640171,-500.0,0.00013698,2]
[331788485,1720764640182,-500.0,0.00013698,2]
[331788486,1720764640192,-500.0,0.00013698,2]
[331788487,1720764640202,-500.0,0.00013698,2]
[331788488,1720764640213,-500.0,0.00013698,2]
[331788489,1720764640223,-500.0,0.00013698,2]
[331788491,1720764640234,-500.0,0.00013698,2]
[331788492,1720764640244,-500.0,0.00013698,2]
[331788494,1720764640255,-500.0,0.00013698,2]
[331788495,1720764640266,-500.0,0.00013698,2]
[331788496,1720764640277,-810.19,0.00013698,2]
[331788497,1720764640288,-500.0,0.00013698,2]
[331788498,1720764640299,-500.0,0.00013698,2]
[331788499,1720764640310,-500.0,0.00013698,2]
[331788500,1720764640320,-500.0,0.00013698,2]
[331788501,1720764640331,-990.18,0.00013698,2]
[331788502,1720764640341,-500.0,0.00013698,2]
[331788503,1720764640352,-1286.87,0.00013698,2]
[331788504,1720764640364,-669.6,0.00013698,2]
[331788505,1720764640375,-1504.98,0.00013698,2]
[331788506,1720764640387,-500.0,0.00013698,2]
[331788507,1720764640397,-504.75,0.00013698,2]
[331788508,1720764640408,-500.0,0.00013698,2]
[331788509,1720764640418,-500.0,0.00013698,2]
[331788510,1720764640429,-500.0,0.00013698,2]
[331788511,1720764640439,-500.0,0.00013698,2]
[331788512,1720764640450,-500.0,0.00013698,2]
[331788513,1720764640460,-865.12,0.00013698,2]
[331788514,1720764640471,-997.85,0.00013698,2]
[331788515,1720764640482,-581.75,0.00013698,2]